bitfinex/quotes_SOLUSD_20220114
["timestamp","ask_amount","ask_price","bid_price","bid_amount"]
[1642192421556,3.68926531,147.68,147.62,10.1568]
[1642192421755,3.68926531,147.68,147.62,18.8188]
[1642192421955,3.68926531,147.68,147.62,36.44957588]
[1642192422563,3.68926531,147.68,147.63,67.32]
[1642192422756,3.68926531,147.68,147.65,10.1544]
[1642192422955,3.68926531,147.68,147.66,3.03219997]
[1642192423156,3.68926531,147.68,147.67,48.03219996]
[1642192423357,3.68926531,147.71,147.67,48.03219996]
[1642192423555,3.68926531,147.71,147.67,54.28219996]
[1642192423958,3.68926531,147.71,147.67,74.11559996]
[1642192424557,3.68926531,147.71,147.67,29.11559996]
[1642192424757,2.708,147.7,147.67,18.71219996]
[1642192424960,2.708,147.7,147.67,6.0]
[1642192425158,2.708,147.7,147.64,9.68]
[1642192425358,2.708,147.7,147.65,6.0]
[1642192425559,3.68926531,147.71,147.64,15.68]
[1642192425759,26.6503,147.74,147.64,15.68]
[1642192425958,26.9003,147.74,147.64,15.93]
[1642192426360,26.6503,147.74,147.64,26.0863]
[1642192426958,23.9423,147.74,147.64,26.0863]
[1642192427359,26.6503,147.74,147.64,26.0863]
[1642192431666,26.6503,147.74,147.64,27.78707588]
[1642192432262,26.9003,147.74,147.64,26.0863]
[1642192434266,26.9003,147.74,147.64,15.68]
[1642192434667,37.0561,147.74,147.64,15.68]
[1642192434868,104.3761,147.74,147.64,15.68]
[1642192435066,104.3761,147.74,147.64,9.68]
[1642192435470,108.06536531,147.74,147.64,9.68]
[1642192436310,108.06536531,147.74,147.64,9.93]
[1642192437201,3.84282488,147.73,147.64,0.25]
[1642192437402,35.6862,147.72,147.64,0.25]
[1642192437703,35.6862,147.72,147.61,8.958]
[1642192437903,35.9362,147.72,147.61,2.958]
[1642192438107,35.9362,147.72,147.61,8.958]
[1642192438304,35.9362,147.72,147.61,8.708]
[1642192438707,35.9362,147.72,147.61,2.708]
[1642192438905,67.32,147.71,147.6,9.68]
[1642192439104,10.1595,147.69,147.6,9.68]
[1642192439304,29.80352207,147.68,147.6,9.68]
[1642192439504,30.05352207,147.68,147.6,9.68]
[1642192439704,30.05352207,147.68,147.6,9.93]
[1642192442110,27.34452207,147.68,147.6,9.93]
[1642192442707,37.50442207,147.68,147.6,9.68]
[1642192443107,2.709,147.67,147.6,9.68]
[1642192443706,2.709,147.67,147.62,10.1565]
[1642192443906,2.709,147.67,147.63,2.709]
[1642192444407,2.709,147.67,147.63,8.959]
[1642192444607,2.709,147.67,147.63,2.709]
[1642192444811,2.709,147.69,147.58,1.70077588]
[1642192445006,2.709,147.69,147.56,3.83313643]
[1642192445007,6.07,147.67,147.56,3.83313643]
[1642192445206,2.709,147.66,147.56,3.83313643]
[1642192445707,2.959,147.66,147.56,3.83313643]
[1642192445909,25.4333,147.68,147.56,3.83313643]
[1642192446307,25.6833,147.68,147.56,10.08313643]
[1642192446907,25.6833,147.68,147.56,6.25]
[1642192447107,31.6833,147.68,147.56,0.25]
[1642192447307,10.1611,147.67,147.56,10.4111]
[1642192447543,6.0,147.67,147.56,10.4111]
[1642192447706,22.7243,147.68,147.57,9.68]
[1642192447909,22.7243,147.68,147.57,12.389]
[1642192448109,22.7243,147.68,147.57,80.219]
[1642192448514,22.7243,147.68,147.57,86.219]
[1642192448708,22.7243,147.68,147.57,87.91977588]
[1642192449307,22.7243,147.68,147.59,10.1587]
[1642192449508,22.7243,147.68,147.59,16.4087]
[1642192450709,22.7243,147.68,147.59,6.25]
[1642192450911,22.7243,147.68,147.59,0.25]
[1642192451112,22.9743,147.68,147.59,6.0]
[1642192451512,2.709,147.67,147.57,28.5481]
[1642192451709,2.709,147.67,147.57,25.8391]
[1642192451910,2.959,147.67,147.57,25.8391]
[1642192452610,2.959,147.67,147.57,93.4091]
[1642192452611,2.709,147.67,147.57,93.4091]
[1642192452811,22.7243,147.68,147.58,2.709]
[1642192453011,22.7243,147.68,147.58,8.959]
[1642192453213,22.7243,147.68,147.58,19.1178]
[1642192453814,22.7243,147.68,147.58,18.8678]
[1642192454313,2.709,147.67,147.58,18.8678]
[1642192455114,2.709,147.67,147.58,19.1178]
[1642192456416,2.709,147.67,147.58,28.7978]
[1642192457015,2.959,147.67,147.58,28.7978]
[1642192457218,2.709,147.67,147.58,28.7978]
[1642192458015,2.959,147.67,147.58,28.7978]
[1642192458217,22.7243,147.68,147.58,28.7978]
[1642192458417,22.9743,147.68,147.58,28.7978]
[1642192459620,22.9743,147.68,147.58,18.639]
[1642192459920,2.709,147.67,147.58,15.93]
[1642192460323,2.959,147.67,147.58,15.93]
[1642192460520,4.88359067,147.67,147.58,17.86314998]
[1642192461221,15.04439067,147.67,147.58,1.93314998]
[1642192461624,15.04439067,147.67,147.57,1.93314998]
[1642192461625,1.92459067,147.66,147.57,1.93314998]
[1642192461824,24.2230796,147.64,147.57,1.93314998]
[1642192462024,2.709,147.63,147.57,7.93314998]
[1642192462652,2.709,147.63,147.57,6.0]
[1642192462853,2.709,147.63,147.57,6.25]
[1642192463252,51.90911658,147.64,147.57,0.25]
[1642192463452,51.90911658,147.64,147.55,17.86314998]
[1642192464454,62.07181658,147.64,147.55,17.86314998]
[1642192464654,62.07181658,147.64,147.56,2.71]
[1642192464954,62.07181658,147.64,147.56,8.96]
[1642192467359,62.07181658,147.64,147.56,2.96]
[1642192468158,62.07181658,147.64,147.56,0.25]
[1642192468457,62.07181658,147.64,147.55,4.64314998]
[1642192468659,62.07181658,147.64,147.55,7.93314998]
[1642192468858,12.8732,147.63,147.55,1.93314998]
[1642192469058,23.7968,147.62,147.55,7.93314998]
[1642192469458,24.0468,147.62,147.55,7.93314998]
[1642192469958,24.0468,147.62,147.55,8.18314998]
[1642192470360,23.7968,147.62,147.55,8.18314998]
[1642192474568,23.7968,147.62,147.55,2.18314998]
[1642192475168,12.8732,147.63,147.55,2.18314998]
[1642192475365,2.71,147.63,147.56,70.03]
[1642192475565,2.71,147.63,147.57,9.68]
[1642192475766,1.92459067,147.64,147.58,70.03]
[1642192475965,1.92459067,147.64,147.59,9.68]
[1642192476165,1.92459067,147.66,147.6,67.32]
[1642192476365,1.92459067,147.66,147.61,9.68]
[1642192476565,1.92459067,147.66,147.61,15.93]
[1642192477169,26.49655412,147.67,147.61,15.93]
[1642192477567,26.74655412,147.67,147.61,15.93]
[1642192478166,29.20555412,147.67,147.61,15.93]
[1642192478567,29.45555412,147.67,147.59,1.93314998]
[1642192478767,52.24765412,147.67,147.59,7.93314998]
[1642192478969,60.32465412,147.67,147.59,7.93314998]
[1642192479369,60.32465412,147.67,147.59,8.18314998]
[1642192479969,52.24765412,147.67,147.59,8.18314998]
[1642192480371,1.92459067,147.66,147.59,6.25]
[1642192480570,2.709,147.65,147.59,0.25]
[1642192480773,2.709,147.65,147.59,6.25]
[1642192481172,4.63359067,147.65,147.59,6.25]
[1642192481374,4.63359067,147.65,147.59,0.25]
[1642192481772,1.92459067,147.65,147.59,0.25]
[1642192481974,2.17459067,147.66,147.59,0.25]
[1642192482175,2.17459067,147.66,147.57,1.93314998]
[1642192482377,10.1623,147.65,147.57,4.64214998]
[1642192482579,10.1623,147.65,147.57,4.89214998]
[1642192482775,10.1623,147.65,147.57,2.959]
[1642192483375,23.6259,147.64,147.57,2.959]
[1642192483876,23.6259,147.64,147.57,13.1199]
[1642192484577,23.6259,147.64,147.57,19.1199]
[1642192485778,23.6259,147.64,147.57,21.05304998]
[1642192488681,23.6259,147.64,147.57,30.73304998]
[1642192489107,1.92459067,147.66,147.57,30.73304998]
[1642192490004,2.17459067,147.66,147.57,30.73304998]
[1642192490404,1.92459067,147.66,147.57,30.73304998]
[1642192490606,4.63359067,147.66,147.57,30.73304998]
[1642192490808,22.7888,147.65,147.57,30.73304998]
[1642192494409,22.7888,147.65,147.57,20.57214998]
[1642192495414,22.7888,147.65,147.57,20.32214998]
[1642192496113,25.4978,147.65,147.57,17.61314998]
[1642192496315,27.42239067,147.65,147.57,15.68]
[1642192496518,27.42239067,147.65,147.57,9.68]
[1642192496720,37.58439067,147.65,147.57,9.68]
[1642192496923,41.71439067,147.65,147.56,1.93314998]
[1642192497120,2.709,147.64,147.56,7.93314998]
[1642192497320,2.709,147.64,147.56,1.93314998]
[1642192497526,2.959,147.64,147.56,1.93314998]
[1642192497927,8.959,147.64,147.56,1.93314998]
[1642192498325,1.92459067,147.63,147.54,1.93314998]
[1642192498527,30.6348111,147.61,147.54,7.93314998]
[1642192498727,30.6348111,147.61,147.54,1.93314998]
[1642192498928,30.8848111,147.61,147.54,7.93314998]
[1642192499327,41.0494111,147.61,147.54,7.93314998]
[1642192499529,41.0494111,147.61,147.54,6.0]
[1642192499928,41.0494111,147.61,147.53,7.93314998]
[1642192500129,41.0494111,147.61,147.53,1.93314998]
[1642192500329,41.0494111,147.61,147.53,7.93314998]
[1642192500531,41.0494111,147.61,147.53,8.18314998]
[1642192500930,41.0494111,147.61,147.53,8.87545181]
[1642192501634,40.7994111,147.61,147.53,8.87545181]
[1642192501835,41.0494111,147.61,147.53,8.87545181]
[1642192503735,24.5904,147.6,147.53,11.58545181]
[1642192503935,24.8404,147.6,147.53,11.58545181]
[1642192504136,35.0057,147.6,147.53,11.58545181]
[1642192505639,35.0057,147.6,147.53,9.65230183]
[1642192507239,24.5904,147.6,147.53,9.65230183]
[1642192507669,24.5904,147.6,147.53,11.58545181]
[1642192510273,24.5904,147.6,147.53,8.87545181]
[1642192512680,34.7558,147.6,147.53,8.87545181]
[1642192514482,35.0058,147.6,147.53,8.87545181]
[1642192514883,2.71,147.59,147.53,8.87545181]
[1642192515081,12.8763,147.59,147.53,6.69230183]
[1642192515282,13.1263,147.59,147.53,6.69230183]
[1642192515484,13.1263,147.59,147.53,0.69230183]
[1642192516087,80.4463,147.59,147.53,0.69230183]
[1642192516299,13.1263,147.59,147.53,0.69230183]
[1642192516491,23.2987,147.58,147.53,0.69230183]
[1642192516691,10.1684,147.56,147.53,0.69230183]
[1642192516990,29.88252303,147.55,147.53,0.69230183]
[1642192519819,52.0,147.54,147.47,2.711]
[1642192520020,76.9003,147.54,147.45,2.711]
[1642192520219,2.711,147.53,147.44,2.711]
[1642192520424,28.46734648,147.52,147.43,2.712]
[1642192520822,38.63854648,147.52,147.43,2.712]
[1642192521027,38.88854648,147.52,147.43,2.712]
[1642192521225,24.2609,147.51,147.43,2.712]
[1642192521525,24.5109,147.51,147.42,0.095]
[1642192521924,10.1727,147.5,147.42,10.2672]
[1642192522322,28.86844635,147.49,147.42,10.2672]
[1642192522522,28.86844635,147.49,147.42,0.095]
[1642192523323,29.11844635,147.49,147.42,0.095]
[1642192524322,39.29134635,147.49,147.42,0.095]
[1642192525523,39.04134635,147.49,147.42,0.095]
[1642192525725,28.86844635,147.49,147.42,10.2672]
[1642192526124,28.86844635,147.49,147.42,16.5172]
[1642192526325,28.86844635,147.49,147.43,2.712]
[1642192526627,28.86844635,147.49,147.43,6.25]
[1642192526824,28.86844635,147.49,147.43,6.0]
[1642192527224,28.86844635,147.49,147.42,16.2672]
[1642192528630,28.86844635,147.49,147.42,16.5172]
[1642192531431,39.29144635,147.49,147.42,16.5172]
[1642192532133,39.29144635,147.49,147.42,6.345]
[1642192532333,39.29144635,147.49,147.42,0.345]
[1642192532531,39.29144635,147.49,147.42,0.095]
[1642192533533,23.9539,147.48,147.42,0.095]
[1642192539741,2.712,147.47,147.42,0.095]
[1642192539943,25.88393487,147.46,147.42,0.095]
[1642192540340,26.13393487,147.46,147.42,0.095]
[1642192542140,24.3048,147.45,147.38,1.51802424]
[1642192542341,24.3048,147.45,147.38,6.0]
[1642192542942,24.3048,147.45,147.38,0.25]
[1642192543141,24.5548,147.45,147.37,20.65532424]
[1642192543342,24.3048,147.45,147.37,20.65532424]
[1642192544042,24.3048,147.45,147.37,14.40532424]
[1642192544247,34.7307,147.45,147.37,4.23002424]
[1642192545442,34.7307,147.45,147.37,10.48002424]
[1642192545643,34.7307,147.45,147.37,0.25]
[1642192545944,34.7307,147.45,147.37,6.0]
[1642192546351,34.7307,147.45,147.37,0.25]
[1642192546645,25.88393487,147.46,147.38,2.713]
[1642192547047,25.88393487,147.46,147.38,8.963]
[1642192548448,25.88393487,147.46,147.39,10.1736]
[1642192548846,25.88393487,147.46,147.39,16.4236]
[1642192549447,2.713,147.48,147.39,16.4236]
[1642192549647,2.713,147.49,147.4,2.713]
[1642192550047,2.713,147.49,147.4,19.1351]
[1642192550251,2.713,147.49,147.4,20.83587588]
[1642192550447,28.39836447,147.49,147.4,20.83587588]
[1642192552849,31.11036447,147.49,147.4,18.12287588]
[1642192553548,41.53316447,147.49,147.4,16.4221]
[1642192553946,23.5744,147.48,147.4,16.4221]
[1642192554546,23.5744,147.48,147.4,6.25]
[1642192554747,23.5744,147.48,147.4,0.25]
[1642192554950,23.5744,147.48,147.39,8.962]
[1642192555353,23.8244,147.48,147.39,8.962]
[1642192556249,23.8244,147.48,147.39,6.25]
[1642192556450,23.8244,147.48,147.39,10.1731]
[1642192556650,23.8244,147.48,147.39,16.1731]
[1642192557750,2.713,147.47,147.39,16.1731]
[1642192557953,28.86225152,147.46,147.39,16.4231]
[1642192559752,28.86225152,147.46,147.39,83.7431]
[1642192560154,28.86225152,147.46,147.39,16.4231]
[1642192560555,28.86225152,147.46,147.39,19.1361]
[1642192561153,28.86225152,147.46,147.39,86.4561]
[1642192561358,28.86225152,147.46,147.39,86.7161]
[1642192564459,23.5744,147.48,147.39,86.7161]
[1642192566964,2.713,147.5,147.39,86.7161]
[1642192567164,2.712,147.51,147.4,9.68]
[1642192567364,23.5233,147.52,147.45,10.1684]
[1642192567590,26.531414,147.53,147.45,16.4184]
[1642192568594,26.531414,147.53,147.45,6.25]
[1642192568791,26.531414,147.53,147.45,6.0]
[1642192568993,26.8316,147.52,147.43,6.0]
[1642192569194,37.0028,147.52,147.42,9.84604847]
[1642192569592,37.2528,147.52,147.42,9.84604847]
[1642192569892,37.2528,147.52,147.42,6.0]
[1642192570095,37.2528,147.52,147.42,0.25]
[1642192570293,37.2528,147.52,147.42,10.4204]
[1642192570494,37.2528,147.52,147.42,16.4204]
[1642192571598,37.2528,147.52,147.42,19.1324]
[1642192574201,37.2528,147.52,147.42,8.712]
[1642192574602,37.2528,147.52,147.4,12.392]
[1642192574801,43.2528,147.52,147.4,9.68]
[1642192575001,63.43671591,147.52,147.39,3.84604847]
[1642192575901,63.43671591,147.52,147.39,4.09604847]
[1642192576504,63.43671591,147.52,147.39,7.06804847]
[1642192576702,52.9328,147.52,147.39,13.06804847]
[1642192576902,46.9328,147.52,147.39,13.06804847]
[1642192577402,52.9328,147.52,147.39,19.395]
[1642192577604,52.9328,147.52,147.39,86.715]
[1642192578208,52.9328,147.52,147.39,19.395]
[1642192578412,63.43671591,147.52,147.39,8.962]
[1642192579505,67.18346254,147.52,147.39,8.962]
[1642192579907,66.93346254,147.52,147.39,8.962]
[1642192580117,56.42954663,147.52,147.39,9.222]
[1642192580306,50.42954663,147.52,147.39,9.222]
[1642192581208,50.42954663,147.52,147.4,67.32]
[1642192581409,50.42954663,147.52,147.41,12.8839]
[1642192581810,50.42954663,147.52,147.41,19.1339]
[1642192582009,50.67954663,147.52,147.41,19.1339]
[1642192582810,46.9328,147.52,147.41,19.1339]
[1642192583010,46.9328,147.52,147.41,13.1339]
[1642192583211,46.9328,147.52,147.41,19.1339]
[1642192583809,46.9328,147.52,147.41,18.8839]
[1642192584010,2.89643298,147.51,147.41,2.712]
[1642192584212,10.1755,147.46,147.38,2.712]
[1642192584410,50.55591549,147.45,147.38,2.712]
[1642192585213,50.55591549,147.45,147.38,2.962]
[1642192585611,50.55591549,147.45,147.38,8.962]
[1642192585811,50.55591549,147.45,147.38,2.962]
[1642192586013,50.55591549,147.45,147.38,8.962]
[1642192586635,50.55591549,147.45,147.38,19.1362]
[1642192587741,50.55591549,147.45,147.38,86.2062]
[1642192588747,50.80591549,147.45,147.38,86.2062]
[1642192588942,50.55591549,147.45,147.38,86.2062]
[1642192589940,50.55591549,147.45,147.38,86.4562]
[1642192590841,50.55591549,147.45,147.38,83.7442]
[1642192595253,24.3239,147.45,147.38,93.4242]
[1642192595454,2.713,147.5,147.38,93.6842]
[1642192595653,22.6875,147.48,147.38,93.6842]
[1642192595853,22.6875,147.48,147.39,2.713]
[1642192596053,22.6875,147.48,147.4,77.4923]
[1642192596253,26.57066027,147.47,147.4,77.4923]
[1642192596455,26.57066027,147.47,147.4,83.7423]
[1642192596953,26.82066027,147.47,147.4,16.4223]
[1642192597155,26.57066027,147.47,147.4,6.25]
[1642192597357,26.82066027,147.47,147.4,6.25]
[1642192597559,2.713,147.46,147.4,6.25]
[1642192597958,0.25,147.46,147.4,6.25]
[1642192598158,0.25,147.46,147.4,0.25]
[1642192598357,24.6842,147.46,147.38,10.4238]
[1642192599561,24.6842,147.46,147.38,16.4238]
[1642192599761,27.3972,147.46,147.38,6.25]
[1642192599961,27.3972,147.46,147.38,0.25]
[1642192600163,27.3972,147.46,147.36,28.818]
[1642192601364,37.5722,147.46,147.36,28.818]
[1642192601564,37.5722,147.46,147.36,96.138]
[1642192602368,34.8592,147.46,147.36,96.138]
[1642192602567,34.8592,147.46,147.36,28.818]
[1642192603167,34.8592,147.46,147.36,95.888]
[1642192603467,25.05161721,147.44,147.36,95.888]
[1642192604069,24.4342,147.46,147.36,96.148]
[1642192604269,2.713,147.49,147.36,109.52465553]
[1642192604469,24.1397,147.48,147.36,109.77465553]
[1642192604970,29.23124611,147.47,147.36,109.77465553]
[1642192605372,29.23124611,147.47,147.37,3.87102393]
[1642192605574,29.23124611,147.47,147.41,10.1719]
[1642192605972,29.23124611,147.47,147.41,16.4219]
[1642192606571,29.23124611,147.47,147.41,0.25]
[1642192606771,31.94324611,147.47,147.41,0.25]
[1642192606973,31.94324611,147.47,147.4,10.1729]
[1642192607373,31.94324611,147.47,147.4,16.4229]
[1642192608173,29.23124611,147.47,147.4,16.4229]
[1642192608375,29.23124611,147.47,147.4,83.7429]
[1642192608774,29.23124611,147.47,147.4,16.4229]
[1642192610876,29.23124611,147.47,147.4,83.7429]
[1642192611480,29.23124611,147.47,147.4,16.4229]
[1642192612182,29.23124611,147.47,147.4,10.4229]
[1642192613512,29.23124611,147.47,147.4,16.4229]
[1642192614113,29.23124611,147.47,147.4,84.0029]
[1642192614912,29.23124611,147.47,147.4,16.4229]
[1642192620119,29.23124611,147.47,147.4,83.7429]
[1642192620520,29.23124611,147.47,147.4,84.0029]
[1642192622624,29.23124611,147.47,147.4,83.7429]
[1642192622823,29.23124611,147.47,147.4,84.0029]
[1642192623622,29.23124611,147.47,147.4,93.6829]
[1642192624725,29.23124611,147.47,147.4,93.4329]
[1642192624924,29.23124611,147.47,147.4,16.4329]
[1642192625326,31.94424611,147.47,147.4,16.4329]
[1642192625930,31.94424611,147.47,147.4,6.0]
[1642192626127,31.94424611,147.47,147.39,6.0]
[1642192626326,24.738,147.46,147.39,6.0]
[1642192626626,25.30991262,147.44,147.36,19.52604847]
[1642192627226,25.30991262,147.44,147.36,15.68]
[1642192627426,25.30991262,147.44,147.37,77.4944]
[1642192627830,25.30991262,147.44,147.37,83.7444]
[1642192628229,25.30991262,147.44,147.37,84.0044]
[1642192628831,25.30991262,147.44,147.37,93.6844]
[1642192630334,24.738,147.46,147.37,93.6844]
[1642192630536,24.738,147.46,147.41,10.1717]
[1642192630737,24.738,147.46,147.42,67.32]
[1642192630938,24.738,147.46,147.42,73.57]
[1642192631364,24.738,147.46,147.42,6.25]
[1642192631536,24.738,147.46,147.42,0.25]
[1642192632436,26.01214014,147.45,147.41,83.7417]
[1642192633340,26.01214014,147.45,147.41,6.0]
[1642192633641,26.01214014,147.45,147.41,0.25]
[1642192634638,26.01214014,147.45,147.4,83.7425]
[1642192636941,26.01214014,147.45,147.4,84.0025]
[1642192641356,24.738,147.46,147.4,84.0025]
[1642192641554,2.713,147.5,147.41,9.68]
[1642192641852,24.5746,147.49,147.43,10.1699]
[1642192642054,24.5746,147.49,147.43,34.5179]
[1642192643553,24.5746,147.49,147.44,77.4891]
[1642192643954,24.5746,147.49,147.44,83.7391]
[1642192644656,24.5746,147.49,147.44,93.4191]
[1642192646777,24.5746,147.49,147.44,26.0991]
[1642192646979,24.5746,147.49,147.44,9.93]
[1642192647878,24.5746,147.49,147.44,15.93]
[1642192648580,24.5746,147.49,147.44,9.68]
[1642192648781,24.8246,147.49,147.44,9.68]
[1642192648980,24.8246,147.49,147.42,10.1702]
[1642192649183,30.72609269,147.47,147.42,16.4202]
[1642192649782,30.72609269,147.47,147.42,6.25]
[1642192649982,30.72609269,147.47,147.42,0.25]
[1642192650481,30.72609269,147.47,147.42,9.68]
[1642192650884,30.72609269,147.47,147.42,15.93]
[1642192651483,30.72609269,147.47,147.42,26.1015]
[1642192651983,36.72609269,147.47,147.42,26.1015]
[1642192654587,30.72609269,147.47,147.42,26.1015]
[1642192654788,30.72609269,147.47,147.43,77.4908]
[1642192654989,30.72609269,147.47,147.43,83.7408]
[1642192655188,30.72609269,147.47,147.43,16.4208]
[1642192656491,30.72609269,147.47,147.43,16.6808]
[1642192657495,30.72609269,147.47,147.43,84.0008]
[1642192657795,30.72609269,147.47,147.43,16.4208]
[1642192658396,30.72609269,147.47,147.43,26.1008]
[1642192658906,30.72609269,147.47,147.43,93.4208]
[1642192660197,30.72609269,147.47,147.43,93.6808]
[1642192660696,30.72609269,147.47,147.43,26.1008]
[1642192660896,30.72609269,147.47,147.43,15.93]
[1642192661099,30.72609269,147.47,147.43,9.93]
[1642192662298,30.72609269,147.47,147.43,0.25]
[1642192662498,30.72609269,147.47,147.41,2.18308034]
[1642192663400,23.3808,147.46,147.41,0.25]
[1642192663799,23.3808,147.46,147.4,75.50308034]
[1642192665228,23.3808,147.46,147.4,73.57]
[1642192666229,23.3808,147.46,147.4,6.25]
[1642192666631,23.3808,147.46,147.4,0.25]
[1642192666830,23.3808,147.46,147.39,28.29538034]
[1642192667033,23.3808,147.46,147.39,28.03538034]
[1642192667332,23.3808,147.46,147.39,8.18308034]
[1642192667531,23.6308,147.46,147.39,8.18308034]
[1642192667730,23.3808,147.46,147.39,8.18308034]
[1642192668130,26.0938,147.46,147.39,8.18308034]
[1642192668331,23.3808,147.46,147.39,8.18308034]
[1642192670431,23.3808,147.46,147.39,6.25]
[1642192670634,23.3808,147.46,147.39,0.25]
[1642192670834,23.3808,147.46,147.38,17.86308034]
[1642192671433,23.6308,147.46,147.38,17.86308034]
[1642192672237,26.3438,147.46,147.38,17.86308034]
[1642192672540,26.3438,147.46,147.38,28.03678034]
[1642192676938,26.3438,147.46,147.38,28.29678034]
[1642192677143,26.0938,147.46,147.38,28.29678034]
[1642192677339,26.0938,147.46,147.38,28.03678034]
[1642192677941,23.3808,147.46,147.39,2.713]
[1642192678341,23.3808,147.46,147.39,8.963]
[1642192678544,23.3808,147.46,147.39,19.136]
[1642192680443,23.3808,147.46,147.39,21.06908034]
[1642192680645,23.3808,147.46,147.39,20.81908034]
[1642192680844,23.3808,147.46,147.39,88.13908034]
[1642192681044,23.3808,147.46,147.39,88.39908034]
[1642192681244,23.3808,147.46,147.39,86.466]
[1642192681444,23.3808,147.46,147.39,96.146]
[1642192682045,23.3808,147.46,147.39,98.32908034]
[1642192682346,23.3808,147.46,147.4,1.70077588]
[1642192682545,23.3808,147.46,147.42,10.1701]
[1642192682748,23.3808,147.46,147.42,15.6461]
[1642192682945,23.3808,147.46,147.42,21.8961]
[1642192683146,23.3808,147.46,147.42,21.6461]
[1642192683747,30.72609269,147.47,147.42,21.6461]
[1642192683947,30.72609269,147.47,147.42,89.2261]
[1642192684245,30.72609269,147.47,147.42,88.9661]
[1642192684449,30.72609269,147.47,147.42,89.4761]
[1642192684845,30.72609269,147.47,147.42,89.2161]
[1642192685046,30.72609269,147.47,147.42,79.046]
[1642192685249,30.72609269,147.47,147.42,79.306]
[1642192685446,30.72609269,147.47,147.42,79.046]
[1642192686348,30.72609269,147.47,147.42,79.306]
[1642192687248,30.72609269,147.47,147.42,82.018]
[1642192687448,30.72609269,147.47,147.42,18.6081]
[1642192687649,2.712,147.46,147.4,1.93308034]
[1642192687852,26.3892,147.46,147.41,1.93308034]
[1642192688750,26.3892,147.46,147.41,6.0]
[1642192688951,26.3892,147.46,147.41,6.25]
[1642192689151,23.6772,147.46,147.41,6.25]
[1642192689350,23.6772,147.46,147.41,0.25]
[1642192689551,23.6772,147.46,147.41,6.0]
[1642192689851,23.6772,147.46,147.39,11.86308034]
[1642192690054,26.3902,147.46,147.39,17.86308034]
[1642192691381,26.3902,147.46,147.39,15.93]
[1642192692660,23.6772,147.46,147.39,18.643]
[1642192693356,23.6772,147.46,147.39,85.963]
[1642192693554,23.6772,147.46,147.39,18.643]
[1642192694255,23.6772,147.46,147.39,20.57608034]
[1642192695254,23.6772,147.46,147.39,18.643]
[1642192695455,26.3902,147.46,147.39,18.643]
[1642192695756,26.3902,147.46,147.39,8.963]
[1642192696457,26.6402,147.46,147.39,8.963]
[1642192697557,26.6402,147.46,147.39,6.25]
[1642192698758,26.6402,147.46,147.39,0.25]
[1642192698958,26.6402,147.46,147.39,6.0]
[1642192699157,26.6402,147.46,147.39,6.25]
[1642192699958,26.3902,147.46,147.39,6.25]
[1642192700163,26.3902,147.46,147.39,0.25]
[1642192700362,26.3902,147.46,147.39,6.25]
[1642192700562,26.3902,147.46,147.4,9.68]
[1642192700764,23.6772,147.46,147.39,8.963]
[1642192701365,23.6772,147.46,147.39,9.223]
[1642192701565,23.6772,147.46,147.39,8.963]
[1642192702164,23.6772,147.46,147.39,10.89608034]
[1642192702365,23.6772,147.46,147.39,18.35518034]
[1642192703364,23.6772,147.46,147.39,85.67518034]
[1642192703569,23.6772,147.46,147.39,85.93518034]
[1642192704465,23.6772,147.46,147.39,95.61518034]
[1642192705365,23.6772,147.46,147.39,95.35518034]
[1642192706170,23.6772,147.46,147.39,18.35518034]
[1642192706395,23.6772,147.46,147.39,8.18308034]